fUST/lending_fUST_20240823
["ID","MTS","AMOUNT","RATE_DAILY","PERIOD"]
[335629510,1724393447604,-500.0,0.00017174,2]
[335629512,1724393447615,-500.0,0.00017174,2]
[335629514,1724393447627,-592.87,0.00017174,2]
[335629516,1724393447638,-500.0,0.00017174,2]
[335629519,1724393447650,-158.39071154,0.00017174,2]
[335629521,1724393447660,-500.0,0.00017174,2]
[335629523,1724393447670,-500.0,0.00017174,2]
[335629525,1724393447680,-500.0,0.00017174,2]
[335629527,1724393447690,-548.55,0.00017174,2]
[335629529,1724393447702,-500.0,0.00017174,2]
[335629531,1724393447715,-500.0,0.00017174,2]
[335629533,1724393447727,-500.0,0.00017174,2]
[335629535,1724393447737,-500.0,0.00017174,2]
[335629537,1724393447747,-556.61,0.00017174,2]
[335629540,1724393447759,-630.0,0.00017174,2]
[335629542,1724393447769,-500.0,0.00017174,2]
[335629544,1724393447779,-500.0,0.00017174,2]
[335629546,1724393447789,-770.14,0.00017174,2]
[335629548,1724393447799,-500.0,0.00017174,2]
[335629550,1724393447809,-500.0,0.00017174,2]
[335629552,1724393447821,-500.0,0.00017174,2]
[335629554,1724393447832,-582.51007573,0.00017174,2]
[335629556,1724393447843,-500.0,0.00017174,2]
[335629558,1724393447854,-500.0,0.00017174,2]
[335629560,1724393447865,-500.0,0.00017174,2]
[335629562,1724393447875,-500.0,0.00017174,2]
[335629565,1724393447887,-500.0,0.00017174,2]
[335629567,1724393447898,-860.41,0.00017174,2]
[335629569,1724393447908,-500.0,0.00017174,2]
[335629571,1724393447920,-500.0,0.00017174,2]
[335629573,1724393447930,-500.0,0.00017174,2]
[335629575,1724393447940,-500.0,0.00017174,2]
[335629577,1724393447950,-522.31,0.00017174,2]
[335629579,1724393447962,-500.0,0.00017174,2]
[335629581,1724393447982,-500.0,0.00017174,2]
[335629583,1724393447992,-500.0,0.00017174,2]
[335629585,1724393448002,-500.0,0.00017174,2]
[335629587,1724393448012,-500.0,0.00017174,2]
[335629590,1724393448022,-528.23,0.00017174,2]
[335629592,1724393448032,-500.0,0.00017174,2]
[335629594,1724393448042,-500.0,0.00017174,2]
[335629596,1724393448052,-500.0,0.00017174,2]
[335629598,1724393448061,-500.0,0.00017174,2]
[335629600,1724393448071,-500.0,0.00017174,2]
[335629602,1724393448082,-500.0,0.00017174,2]
[335629604,1724393448094,-533.08,0.00017174,2]
[335629606,1724393448106,-500.0,0.00017174,2]
[335629608,1724393448117,-500.0,0.00017174,2]
[335629610,1724393448130,-500.0,0.00017174,2]
[335629612,1724393448140,-500.0,0.00017174,2]
[335629614,1724393448150,-500.0,0.00017174,2]
[335629616,1724393448161,-500.0,0.00017174,2]
[335629618,1724393448171,-500.0,0.00017174,2]
[335629620,1724393448181,-500.0,0.00017174,2]
[335629622,1724393448191,-504.94101005,0.00017174,2]
[335629625,1724393448202,-500.0,0.00017174,2]
[335629627,1724393448215,-500.0,0.00017174,2]
[335629629,1724393448225,-500.0,0.00017174,2]
[335629631,1724393448238,-500.0,0.00017174,2]
[335629633,1724393448248,-500.0,0.00017174,2]
[335629635,1724393448259,-922.87,0.00017174,2]
[335629636,1724393448269,-500.0,0.00017174,2]
[335629639,1724393448280,-500.0,0.00017174,2]
[335629641,1724393448290,-500.0,0.00017174,2]
[335629643,1724393448299,-500.0,0.00017174,2]
[335629645,1724393448310,-500.0,0.00017174,2]
[335629647,1724393448320,-500.0,0.00017174,2]
[335629649,1724393448330,-500.0,0.00017174,2]
[335629651,1724393448340,-500.0,0.00017174,2]
[335629653,1724393448350,-500.0,0.00017174,2]
[335629655,1724393448359,-500.0,0.00017174,2]
[335629657,1724393448369,-500.0,0.00017174,2]
[335629659,1724393448379,-500.0,0.00017174,2]
[335629661,1724393448389,-564.81,0.00017174,2]
[335629663,1724393448400,-500.0,0.00017174,2]
[335629665,1724393448411,-500.0,0.00017174,2]
[335629667,1724393448421,-500.0,0.00017174,2]
[335629669,1724393448431,-500.0,0.00017174,2]
[335629671,1724393448444,-500.0,0.00017174,2]
[335629673,1724393448454,-500.0,0.00017174,2]
[335629675,1724393448464,-500.0,0.00017174,2]
[335629677,1724393448474,-500.0,0.00017174,2]
[335629679,1724393448484,-500.0,0.00017174,2]
[335629681,1724393448497,-500.0,0.00017174,2]
[335629683,1724393448507,-500.0,0.00017174,2]
[335629685,1724393448517,-515.86,0.00017174,2]
[335629687,1724393448527,-532.52166829,0.00017174,2]
[335629689,1724393448539,-500.0,0.00017174,2]
[335629691,1724393448549,-500.0,0.00017174,2]
[335629693,1724393448560,-500.0,0.00017174,2]
[335629695,1724393448575,-744.17,0.00017174,2]
[335629697,1724393448585,-500.0,0.00017174,2]
[335629699,1724393448595,-534.03653016,0.00017174,2]
[335629701,1724393448606,-500.0,0.00017174,2]
[335629703,1724393448616,-1000.0,0.00017174,2]
[335629705,1724393448627,-500.0,0.00017174,2]
[335629707,1724393448638,-500.0,0.00017174,2]
[335629709,1724393448648,-500.0,0.00017174,2]
[335629711,1724393448658,-722.63,0.00017174,2]
[335629713,1724393448668,-500.0,0.00017174,2]
[335629715,1724393448678,-500.0,0.00017174,2]
[335629717,1724393448688,-500.0,0.00017174,2]
[335629719,1724393448698,-537.34576519,0.00017174,2]
[335629721,1724393448707,-295.86342463,0.00017174,2]
[335629756,1724393449054,-204.13657537,0.00017174,2]
[335629758,1724393449065,-500.0,0.00017174,2]
[335629760,1724393449075,-871.62317299,0.00017174,2]
[335631133,1724393464089,178.89598064,0.00014519,2]
[335631136,1724393464115,4.525982,0.00014519,2]
[335632485,1724393845029,309.2487777,0.00013971,2]
[335632487,1724393877427,154.83035263,0.00013971,2]
[335632488,1724393885570,396.52363042,0.00013971,2]
[335632490,1724393901043,181.44979947,0.00013971,2]
[335632491,1724393914648,1001.43609718,0.00013971,2]
[335632493,1724393923090,288.2814247,0.00013971,2]
[335632494,1724393953825,221.74231623,0.00013971,2]
[335632497,1724394053031,288.37900256,0.00013971,2]
[335632503,1724394237508,216.62192541,0.00014,2]
[335632505,1724394340180,-520.04170084,0.00014245,2]
[335632506,1724394340203,-224.078856,0.00014247,2]
[335632507,1724394340226,-90.35516846,0.000145,2]
[335632508,1724394345105,-63.71924584,0.000145,2]
[335632509,1724394345127,-572.49674019,0.00016164,2]
[335632510,1724394355385,3619.99670601,0.00014,2]
[335632511,1724394378902,218.72502535,0.00014,2]
[335632513,1724394406575,1425.06821037,0.00014,2]
[335632515,1724394416021,31273.30404044,0.00013971,2]
[335632516,1724394419718,1134.39919135,0.00014,2]
[335632517,1724394423164,2116.47318614,0.00014,2]
[335632518,1724394425058,13615.96254338,0.00014,2]
[335632519,1724394431853,-199.05321466,0.00014519,2]
[335632520,1724394445103,-144.24670875,0.00014519,2]
[335632521,1724394445126,-176.3915356,0.00016082,2]
[335632522,1724394445147,-1189.76047841,0.00016869,2]
[335632523,1724394445169,-991.25718944,0.00016969,2]
[335632524,1724394445191,-3620.47609977,0.00016969,2]
[335632525,1724394445212,-154.74379546,0.00016969,2]
[335632526,1724394445234,-180.82801907,0.00016969,2]
[335632527,1724394445255,-1037.56632728,0.00016969,2]
[335632528,1724394445276,-337.00371314,0.00017,2]
[335632529,1724394445297,-153.0,0.00017,2]
[335632530,1724394445318,-207.6636928,0.00017,2]
[335632531,1724394445340,-1024.34788368,0.00017073,2]
[335632532,1724394445363,-207.6636928,0.000171,2]
[335632533,1724394445385,-153.0,0.000171,2]
[335632534,1724394445409,-153.0,0.000171,2]
[335632535,1724394445431,-153.0,0.000171,2]
[335632536,1724394445455,-207.6636928,0.000171,2]
[335632537,1724394445478,-153.0,0.000171,2]
[335632538,1724394445505,-153.0,0.000171,2]
[335632539,1724394445528,-153.0,0.000171,2]
[335632540,1724394445552,-32633.84877041,0.00017153,2]
[335632542,1724394496712,582471.67968825,0.00027,120]
[335632546,1724394521931,945.00777589,0.0001,120]
[335632550,1724394552929,218.7590501,0.0001,2]
[335632551,1724394553593,3310.81420422,0.0001,2]
[335632552,1724394557555,-157.07977921,0.00014245,2]
[335632553,1724394557577,-230.77399459,0.00014245,2]
[335632554,1724394557600,-995.18979797,0.00014519,2]
[335632555,1724394557622,-190.76142849,0.00014519,2]
[335632556,1724394557650,-991.38842768,0.00014519,2]
[335632557,1724394557676,-239.30896493,0.00014519,2]
[335632558,1724394557699,-155.03912898,0.00014519,2]
[335632559,1724394557722,-237.99528311,0.00014519,2]
[335632560,1724394557744,-2766.48417167,0.00014519,2]
[335632561,1724394557767,-665.59514245,0.00014519,2]
[335632562,1724394557789,-155.09847633,0.00014519,2]
[335632563,1724394557810,-180.82801907,0.00014519,2]
[335632564,1724394557832,-494.54817888,0.00014519,2]
[335632565,1724394557858,-273.47695658,0.00014519,2]
[335632566,1724394559428,3093.28626151,0.00014245,2]
[335632567,1724394559869,545.09526386,0.00014245,2]
[335632568,1724394561523,244.47706196,0.00014519,2]
[335632569,1724394561551,487.36025872,0.00013971,2]
[335632570,1724394561573,12140.9945902,0.00013971,2]
[335632571,1724394561599,29610.71938391,0.00013971,2]
[335632572,1724394562472,189.19862395,0.00012121,2]
[335632573,1724394563520,271.61019222,0.0001,2]
[335632574,1724394564027,816.40888481,0.0001,2]
[335632575,1724394565164,2112.82706515,0.0001,2]
[335632576,1724394566129,-188.54556586,0.00014519,2]
[335632577,1724394569598,156.53903536,0.00014519,2]
[335632579,1724394575880,301.4340064,0.00014519,2]
[335632580,1724394578281,154.83520553,0.00014519,2]
[335632582,1724394579902,155.21189234,0.00014519,2]
[335632583,1724394580090,180.35505192,0.00016438,2]
[335632584,1724394583180,817.69256856,0.00014519,3]
[335632585,1724394586140,198.96990819,0.0001,2]
[335632586,1724394586164,985.8926091,0.0001,2]
[335632587,1724394586191,2424.28505698,0.0001,2]
[335632618,1724394632605,-415.24587429,0.00014519,2]
[335632620,1724394632615,-602.94322686,0.00014519,2]
[335632622,1724394632624,-900.71551124,0.00014519,2]
[335632624,1724394632633,-158.13895029,0.00014519,2]
[335632626,1724394632643,-154.76126421,0.00014519,2]
[335632628,1724394632652,-154.85720824,0.00014519,2]
[335632629,1724394632661,-319.64494808,0.00016438,2]
[335632631,1724394632671,-500.0,0.00016969,2]
[335632632,1724394632681,-500.0,0.00016969,2]
[335632634,1724394632690,-1102.43,0.00016969,2]
[335632635,1724394632700,-500.0,0.00016969,2]
[335632636,1724394632710,-500.0,0.00016969,2]
[335632637,1724394632721,-500.0,0.00016969,2]
[335632638,1724394632730,-500.0,0.00016969,2]
[335632639,1724394632739,-3243.33,0.00016969,2]
[335632640,1724394632748,-500.0,0.00016969,2]
[335632641,1724394632757,-587.03,0.00016969,2]
[335632642,1724394632767,-520.05,0.00016969,2]
[335632643,1724394632776,-2130.16,0.00016969,2]
[335632644,1724394632786,-383.21263275,0.00016969,2]
[335632645,1724394632795,-582.14,0.00016969,2]
[335632646,1724394632804,-1687.65,0.00016969,2]
[335632647,1724394632814,-500.0,0.00016969,2]
[335632648,1724394632824,-10000.0,0.00017,2]
[335632649,1724394632834,-244.953927,0.00017,2]
[335632650,1724394632843,-1041.04041867,0.00017052,2]
[335632651,1724394632853,-4810.81645252,0.00017151,2]
[335632652,1724394633055,-22689.93557288,0.00017151,2]
[335632653,1724394633065,-4315.32681059,0.00017152,2]
[335632654,1724394633078,-389.27495617,0.00017152,2]
[335632668,1724394638706,-500.0,0.00016969,2]
[335632669,1724394638718,-500.0,0.00016969,2]
[335632670,1724394638728,-500.0,0.00016969,2]
[335632671,1724394638737,-631.8537772,0.00016969,2]
[335632672,1724394638748,-50296.90228404,0.00017152,2]
[335632673,1724394638757,-500.0,0.00017152,2]
[335632674,1724394638767,-500.0,0.00017152,2]
[335632675,1724394638777,-500.0,0.00017153,2]
[335632676,1724394638788,-500.0,0.00017153,2]
[335632677,1724394638800,-137503.760127,0.00017153,2]
[335632678,1724394638809,-500.0,0.00017155,2]
[335632679,1724394638820,-27500.7520254,0.00017156,2]
[335632680,1724394638831,-500.0,0.0001716,2]
[335632681,1724394638841,-500.0,0.0001716,2]
[335632682,1724394638851,-500.0,0.0001716,2]
[335632683,1724394638863,-500.0,0.0001716,2]
[335632684,1724394638878,-500.0,0.0001716,2]
[335632685,1724394638889,-500.0,0.0001716,2]
[335632686,1724394638899,-380.38156703,0.0001716,2]
[335632687,1724394638909,-500.0,0.0001716,2]
[335632688,1724394638920,-500.0,0.0001716,2]
[335632689,1724394638929,-500.0,0.0001716,2]
[335632690,1724394638938,-500.0,0.0001716,2]
[335632691,1724394638951,-500.0,0.0001716,2]
[335632692,1724394638960,-500.0,0.0001716,2]
[335632693,1724394638970,-371.64930465,0.0001716,2]
[335632694,1724394638980,-500.0,0.0001716,2]
[335632695,1724394638990,-500.0,0.0001716,2]
[335632696,1724394638999,-597.82017412,0.0001716,2]
[335632697,1724394639008,-500.0,0.0001716,2]
[335632698,1724394639019,-500.0,0.0001716,2]
[335632699,1724394639028,-151.0,0.0001716,2]
[335632700,1724394639037,-2264.740715,0.0001716,2]
[335632701,1724394639047,-2264.740715,0.0001716,2]
[335632702,1724394639057,-397.933361,0.0001716,2]
[335632703,1724394639069,-397.933361,0.0001716,2]
[335632704,1724394639080,-1417.69661,0.0001716,2]
[335632705,1724394639090,-1417.69661,0.0001716,2]
[335632706,1724394639100,-217.682214,0.0001716,2]
[335632707,1724394639110,-217.682214,0.0001716,2]
[335632708,1724394639119,-500.0,0.0001716,2]
[335632709,1724394639129,-500.0,0.00017161,2]
[335632710,1724394639139,-2356.31,0.00017161,2]
[335632711,1724394639148,-152.698673,0.00017161,2]
[335632712,1724394639157,-943.51,0.00017161,2]
[335632713,1724394639167,-500.0,0.00017161,2]
[335632714,1724394639176,-626.96,0.00017161,2]
[335632715,1724394639186,-151.0,0.00017161,2]
[335632716,1724394639195,-151.0,0.00017161,2]
[335632717,1724394639204,-1695.8,0.00017161,2]
[335632718,1724394639214,-1397.52,0.00017161,2]
[335632719,1724394639224,-543.387907,0.00017161,2]
[335632720,1724394639234,-543.387907,0.00017161,2]
[335632721,1724394639245,-3059.37,0.00017161,2]
[335632722,1724394639256,-500.0,0.00017161,2]
[335632723,1724394639267,-500.0,0.00017161,2]
[335632724,1724394639279,-1108.58,0.00017161,2]
[335632725,1724394639290,-500.0,0.00017161,2]
[335632726,1724394639300,-500.0,0.00017161,2]
[335632727,1724394639310,-511.42370926,0.00017161,2]
[335632728,1724394639321,-500.0,0.00017161,2]
[335632729,1724394639331,-1277.56,0.00017161,2]
[335632730,1724394639340,-1255.05,0.00017161,2]
[335632731,1724394639351,-518.62668404,0.00017161,2]
[335632732,1724394639361,-661.46,0.00017161,2]
[335632733,1724394639373,-1505.16,0.00017161,2]
[335632734,1724394639384,-500.0,0.00017161,2]
[335632735,1724394639396,-500.0,0.00017161,2]
[335632736,1724394639407,-500.0,0.00017161,2]
[335632737,1724394639417,-500.0,0.00017161,2]
[335632738,1724394639428,-500.0,0.00017161,2]
[335632739,1724394639438,-151.0,0.00017161,2]
[335632740,1724394639449,-500.0,0.00017161,2]
[335632741,1724394639460,-500.0,0.00017161,2]
[335632742,1724394639470,-1360.47,0.00017161,2]
[335632743,1724394639481,-500.0,0.00017161,2]
[335632744,1724394639490,-2264.740715,0.00017161,2]
[335632745,1724394639500,-2264.740715,0.00017161,2]
[335632746,1724394639511,-1460.85,0.00017161,2]
[335632747,1724394639523,-500.0,0.00017161,2]
[335632748,1724394639534,-397.933361,0.00017161,2]
[335632749,1724394639544,-397.933361,0.00017161,2]
[335632750,1724394639555,-1417.69661,0.00017161,2]
[335632751,1724394639566,-1417.69661,0.00017161,2]
[335632752,1724394639577,-500.0,0.00017161,2]
[335632753,1724394639590,-217.682214,0.00017161,2]
[335632754,1724394639602,-500.0,0.00017161,2]
[335632755,1724394639612,-500.0,0.00017161,2]
[335632756,1724394639622,-217.682214,0.00017161,2]
[335632757,1724394639631,-500.0,0.00017161,2]
[335632758,1724394639641,-633.26004188,0.00017161,2]
[335632759,1724394639650,-500.0,0.00017161,2]
[335632760,1724394639659,-500.0,0.00017161,2]
[335632761,1724394639669,-500.0,0.00017162,2]
[335632762,1724394639680,-1850.02,0.00017162,2]
[335632763,1724394639690,-500.0,0.00017162,2]
[335632764,1724394639928,-500.0,0.00017162,2]
[335632765,1724394639939,-500.0,0.00017162,2]
[335632766,1724394639950,-500.0,0.00017162,2]
[335632767,1724394639961,-509.29053824,0.00017162,2]
[335632768,1724394639972,-500.0,0.00017162,2]
[335632769,1724394639982,-500.0,0.00017162,2]
[335632770,1724394639993,-500.0,0.00017162,2]
[335632771,1724394640003,-1398.2,0.00017162,2]
[335632772,1724394640012,-500.0,0.00017162,2]
[335632773,1724394640022,-525.69,0.00017162,2]
[335632774,1724394640032,-500.0,0.00017162,2]
[335632775,1724394640041,-533.42,0.00017162,2]
[335632776,1724394640051,-500.0,0.00017162,2]
[335632777,1724394640062,-738.05,0.00017162,2]
[335632778,1724394640072,-500.0,0.00017162,2]
[335632779,1724394640082,-500.0,0.00017162,2]
[335632780,1724394640091,-500.0,0.00017162,2]
[335632781,1724394640102,-500.0,0.00017162,2]
[335632782,1724394640111,-824.56,0.00017162,2]
[335632783,1724394640121,-500.55,0.00017162,2]
[335632784,1724394640131,-500.0,0.00017162,2]
[335632785,1724394640141,-500.0,0.00017162,2]
[335632786,1724394640151,-630.84,0.00017162,2]
[335632787,1724394640160,-500.0,0.00017162,2]
[335632788,1724394640170,-500.0,0.00017162,2]
[335632789,1724394640179,-500.0,0.00017162,2]
[335632790,1724394640188,-500.0,0.00017162,2]
[335632791,1724394640198,-500.0,0.00017162,2]
[335632792,1724394640208,-500.0,0.00017162,2]
[335632793,1724394640218,-506.22,0.00017162,2]
[335632794,1724394640228,-500.0,0.00017162,2]
[335632795,1724394640238,-500.0,0.00017162,2]
[335632797,1724394640247,-500.0,0.00017162,2]
[335632798,1724394640257,-500.0,0.00017162,2]
[335632799,1724394640266,-500.0,0.00017162,2]
[335632800,1724394640275,-500.0,0.00017162,2]
[335632801,1724394640284,-510.87,0.00017162,2]
[335632802,1724394640293,-713.16,0.00017162,2]
[335632803,1724394640303,-500.0,0.00017162,2]
[335632804,1724394640312,-1000.0,0.00017162,2]
[335632805,1724394640322,-500.0,0.00017162,2]
[335632806,1724394640331,-884.41,0.00017162,2]
[335632807,1724394640342,-467.979755,0.00017162,2]
[335632808,1724394640352,-467.979755,0.00017162,2]
[335632809,1724394640361,-500.0,0.00017162,2]
[335632810,1724394640371,-553.018431,0.00017162,2]
[335632811,1724394640385,-553.018431,0.00017162,2]
[335632812,1724394640395,-541.28,0.00017162,2]
[335632813,1724394640405,-467.979755,0.00017162,2]
[335632814,1724394640415,-467.979755,0.00017162,2]
[335632816,1724394640425,-553.018431,0.00017162,2]
[335632818,1724394640434,-553.018431,0.00017162,2]
[335632820,1724394640446,-386.314379,0.00017162,2]
[335632822,1724394640456,-386.314379,0.00017162,2]
[335632823,1724394640466,-386.314379,0.00017162,2]
[335632824,1724394640476,-386.314379,0.00017162,2]
[335632825,1724394640485,-998.041944,0.00017162,2]
[335632826,1724394640495,-998.041944,0.00017162,2]
[335632828,1724394640507,-998.041944,0.00017162,2]
[335632829,1724394640517,-998.041944,0.00017162,2]
[335632830,1724394640526,-998.041944,0.00017162,2]
[335632831,1724394640535,-998.041944,0.00017162,2]
[335632832,1724394640544,-500.0,0.00017162,2]
[335632833,1724394640554,-500.0,0.00017162,2]
[335632834,1724394640563,-500.0,0.00017162,2]
[335632835,1724394640571,-500.0,0.00017162,2]
[335632836,1724394640581,-500.0,0.00017162,2]
[335632838,1724394640590,-500.0,0.00017162,2]
[335632840,1724394640599,-500.0,0.00017162,2]
[335632841,1724394640608,-500.0,0.00017162,2]
[335632842,1724394640618,-500.0,0.00017162,2]
[335632843,1724394640627,-500.0,0.00017162,2]
[335632844,1724394640636,-500.0,0.00017162,2]
[335632845,1724394640647,-500.0,0.00017162,2]
[335632846,1724394640656,-500.0,0.00017162,2]
[335632847,1724394640666,-516.79,0.00017162,2]
[335632848,1724394640676,-500.0,0.00017162,2]
[335632849,1724394640686,-500.0,0.00017162,2]
[335632850,1724394640695,-151.0,0.00017162,2]
[335632851,1724394640705,-500.0,0.00017162,2]
[335632852,1724394640716,-151.0,0.00017162,2]
[335632853,1724394640726,-500.0,0.00017162,2]
[335632854,1724394640736,-151.0,0.00017162,2]
[335632855,1724394640746,-151.0,0.00017162,2]
[335632856,1724394640755,-151.0,0.00017162,2]
[335632857,1724394640765,-151.0,0.00017162,2]
[335632859,1724394640774,-151.0,0.00017162,2]
[335632860,1724394640784,-151.0,0.00017162,2]
[335632861,1724394640794,-204.586693,0.00017162,2]
[335632862,1724394640804,-500.0,0.00017162,2]
[335632863,1724394640814,-204.586693,0.00017162,2]
[335632864,1724394640824,-151.0,0.00017162,2]
[335632865,1724394640833,-204.586693,0.00017162,2]
[335632866,1724394640843,-151.0,0.00017162,2]
[335632868,1724394640853,-151.0,0.00017162,2]
[335632869,1724394640863,-204.586693,0.00017162,2]
[335632871,1724394640874,-151.0,0.00017162,2]
[335632872,1724394640884,-151.0,0.00017162,2]
[335632873,1724394640895,-151.0,0.00017162,2]
[335632874,1724394640904,-500.0,0.00017162,2]
[335632875,1724394640914,-500.0,0.00017162,2]
[335632876,1724394640925,-692.52,0.00017162,2]
[335632877,1724394640935,-543.387907,0.00017162,2]
[335632878,1724394640944,-204.586693,0.00017162,2]
[335632879,1724394640956,-543.387907,0.00017162,2]
[335632880,1724394640971,-204.586693,0.00017162,2]
[335632881,1724394640981,-543.387907,0.00017162,2]
[335632882,1724394640991,-543.387907,0.00017162,2]
[335632883,1724394641000,-543.387907,0.00017162,2]
[335632884,1724394641009,-543.387907,0.00017162,2]
[335632885,1724394641019,-543.387907,0.00017162,2]
[335632886,1724394641029,-543.387907,0.00017162,2]
[335632887,1724394641039,-500.0,0.00017162,2]
[335632888,1724394641048,-151.0,0.00017162,2]
[335632889,1724394641058,-151.0,0.00017162,2]
[335632890,1724394641068,-151.0,0.00017162,2]
[335632891,1724394641077,-151.0,0.00017162,2]
[335632892,1724394641087,-3489.39,0.00017162,2]
[335632893,1724394641097,-173.799017,0.00017162,2]
[335632894,1724394641107,-500.0,0.00017162,2]
[335632895,1724394641116,-151.0,0.00017162,2]
[335632896,1724394641125,-151.0,0.00017162,2]
[335632897,1724394641135,-151.0,0.00017162,2]
[335632898,1724394641144,-151.0,0.00017162,2]
[335632899,1724394641154,-5278.52,0.00017162,2]
[335632900,1724394641163,-2025.54,0.00017162,2]
[335632901,1724394641173,-151.0,0.00017162,2]
[335632902,1724394641183,-151.0,0.00017162,2]
[335632903,1724394641193,-151.0,0.00017162,2]
[335632904,1724394641202,-500.0,0.00017162,2]
[335632905,1724394641211,-210.433316,0.00017162,2]
[335632906,1724394641221,-151.0,0.00017162,2]
[335632907,1724394641231,-151.0,0.00017162,2]
[335632908,1724394641240,-500.0,0.00017162,2]
[335632909,1724394641250,-151.0,0.00017162,2]
[335632910,1724394641259,-500.0,0.00017162,2]
[335632911,1724394641268,-151.0,0.00017162,2]
[335632912,1724394641277,-151.0,0.00017162,2]
[335632913,1724394641287,-151.0,0.00017162,2]
[335632914,1724394641296,-500.0,0.00017162,2]
[335632915,1724394641305,-151.0,0.00017162,2]
[335632916,1724394641315,-151.0,0.00017162,2]
[335632917,1724394641324,-500.0,0.00017162,2]
[335632918,1724394641334,-500.0,0.00017162,2]
[335632919,1724394641343,-775.95,0.00017162,2]
[335632920,1724394641354,-221.882493,0.00017162,2]
[335632921,1724394641363,-221.882493,0.00017162,2]
[335632922,1724394641373,-221.882493,0.00017162,2]
[335632923,1724394641382,-221.882493,0.00017162,2]
[335632924,1724394641392,-541.64,0.00017162,2]
[335632925,1724394641401,-221.882493,0.00017162,2]
[335632926,1724394641410,-221.882493,0.00017162,2]
[335632927,1724394641420,-221.882493,0.00017162,2]
[335632928,1724394641429,-221.882493,0.00017162,2]
[335632929,1724394641439,-500.0,0.00017162,2]
[335632930,1724394641448,-500.0,0.00017162,2]
[335632931,1724394641458,-500.0,0.00017162,2]
[335632932,1724394641468,-500.0,0.00017162,2]
[335632933,1724394641477,-151.0,0.00017162,2]
[335632934,1724394641486,-500.0,0.00017162,2]
[335632935,1724394641497,-164.883004,0.00017162,2]
[335632936,1724394641506,-500.0,0.00017162,2]
[335632937,1724394641515,-542.016509,0.00017162,2]
[335632938,1724394641524,-542.016509,0.00017162,2]
[335632939,1724394641534,-542.016509,0.00017162,2]
[335632940,1724394641544,-542.016509,0.00017162,2]
[335632941,1724394641554,-500.0,0.00017162,2]
[335632942,1724394641567,-500.0,0.00017162,2]
[335632943,1724394641578,-542.016509,0.00017162,2]
[335632944,1724394641587,-542.016509,0.00017162,2]
[335632945,1724394641598,-151.0,0.00017162,2]
[335632946,1724394641609,-542.016509,0.00017162,2]
[335632947,1724394641619,-542.016509,0.00017162,2]
[335632948,1724394641629,-151.0,0.00017162,2]
[335632949,1724394641639,-151.0,0.00017162,2]
[335632950,1724394641649,-500.0,0.00017162,2]
[335632951,1724394641659,-151.0,0.00017162,2]
[335632952,1724394641670,-500.0,0.00017162,2]
[335632953,1724394641681,-500.0,0.00017162,2]
[335632954,1724394641692,-1450.15,0.00017162,2]
[335632955,1724394641703,-624.63,0.00017162,2]
[335632956,1724394641716,-500.0,0.00017162,2]
[335632957,1724394641726,-500.0,0.00017162,2]
[335632958,1724394641736,-166.57232,0.00017162,2]